bitfinex-derivatives/quotes_BTCF0:USTF0_20210703
["timestamp","ask_amount","ask_price","bid_price","bid_amount"]
[1625272708218,0.08478232,33529.0,33527.0,0.54674267]
[1625272708468,0.08478232,33529.0,33528.0,0.0065919]
[1625272708569,0.84763387,33529.0,33528.0,0.0655919]
[1625272708971,0.84763387,33529.0,33528.0,0.0065919]
[1625272709171,0.84763387,33529.0,33528.0,0.0655919]
[1625272709270,0.84763387,33529.0,33528.0,0.30616734]
[1625272709721,1.52492061,33529.0,33528.0,0.30616734]
[1625272710927,0.50854643,33529.0,33528.0,0.39402155]
[1625272711425,0.84813127,33529.0,33528.0,0.39402155]
[1625272713227,0.84813127,33529.0,33528.0,0.30616734]
[1625272713929,1.18745538,33529.0,33528.0,0.30616734]
[1625272714832,0.84813271,33529.0,33528.0,0.30616734]
[1625272715382,0.50854643,33529.0,33528.0,0.30616734]
[1625272717036,0.84822187,33529.0,33528.0,0.30616734]
[1625272717638,0.84822187,33529.0,33528.0,0.74514857]
[1625272717639,0.08508838,33529.0,33528.0,0.74514857]
[1625272718539,0.42494746,33530.0,33528.0,0.74514857]
[1625272718838,0.42494746,33530.0,33529.0,0.00659858]
[1625272718939,0.42494746,33530.0,33529.0,0.06559858]
[1625272719540,0.08510347,33530.0,33529.0,0.06559858]
[1625272720595,0.33995488,33530.0,33529.0,0.06559858]
[1625272721146,0.84973165,33530.0,33529.0,0.06559858]
[1625272722949,1.1902376,33530.0,33529.0,0.06559858]
[1625272731161,2.21133829,33530.0,33529.0,0.15349495]
[1625272733769,2.21133829,33530.0,33529.0,0.06559858]
[1625272734018,3.40377497,33530.0,33529.0,0.06559858]
[1625272734120,3.40377497,33530.0,33529.0,0.15357078]
[1625272734469,3.40377497,33530.0,33529.0,0.50545719]
[1625272734570,2.21133829,33530.0,33529.0,0.50545719]
[1625272736875,3.40467655,33530.0,33529.0,0.94555134]
[1625272739326,3.40467655,33530.0,33529.0,0.59366493]
[1625272739776,3.40467655,33530.0,33529.0,0.94585692]
[1625272740479,3.40467655,33530.0,33529.0,0.41779057]
[1625272740929,3.40467655,33530.0,33529.0,0.94614368]
[1625272743388,3.40467655,33530.0,33529.0,0.59395169]
[1625272745438,3.40467655,33530.0,33529.0,1.29879068]
[1625272748196,3.40467655,33530.0,33529.0,2.35618742]
[1625272748802,2.21133829,33530.0,33529.0,3.5898167]
[1625272751097,3.40752709,33530.0,33529.0,3.5898167]
[1625272751501,3.70233709,33530.0,33529.0,3.5898167]
[1625272751750,3.76133709,33530.0,33529.0,3.5308167]
[1625272752048,3.77233762,33530.0,33529.0,3.5308167]
[1625272752200,5.13746583,33530.0,33529.0,0.09476123]
[1625272752901,6.67268022,33530.0,33529.0,0.00659858]
[1625272753553,6.91325566,33530.0,33529.0,0.00659858]
[1625272756860,6.90225513,33530.0,33529.0,0.00659858]
[1625272757965,6.91324931,33530.0,33529.0,0.00659858]
[1625272758213,6.97224931,33530.0,33524.0,0.98449733]
[1625272758463,0.01101171,33529.0,33525.0,0.00659021]
[1625272758565,0.12901171,33529.0,33525.0,0.00659021]
[1625272758666,5.79009893,33526.0,33525.0,0.00659021]
[1625272758765,5.84909893,33526.0,33525.0,0.00659021]
[1625272758866,5.90809893,33526.0,33525.0,0.00659021]
[1625272759067,5.91911094,33526.0,33520.0,0.00659049]
[1625272759172,7.62130232,33526.0,33520.0,0.00659049]
[1625272759268,7.62130232,33526.0,33517.0,0.70575655]
[1625272759466,7.62130232,33526.0,33517.0,0.76475655]
[1625272759568,0.24057544,33520.0,33519.0,0.24057544]
[1625272759718,0.59894544,33520.0,33519.0,0.24057544]
[1625272759867,5.89864544,33520.0,33519.0,0.247166]
[1625272760218,10.15025416,33520.0,33519.0,0.247166]
[1625272760667,11.68087592,33520.0,33519.0,0.247166]
[1625272760925,11.68087592,33520.0,33519.0,0.24057544]
[1625272761470,11.73987592,33520.0,33519.0,0.24057544]
[1625272761570,11.98045136,33520.0,33519.0,0.24057544]
[1625272761822,11.92145136,33520.0,33519.0,0.24057544]
[1625272761921,11.98045136,33520.0,33519.0,0.24057544]
[1625272765584,11.98045136,33520.0,33515.0,1.9414]
[1625272766339,2.88447239,33516.0,33515.0,1.9414]
[1625272766437,2.94347239,33516.0,33515.0,1.9414]
[1625272766789,2.88447239,33516.0,33515.0,1.9414]
[1625272767340,2.88447239,33516.0,33515.0,2.0004]
[1625272767643,1.69678838,33516.0,33515.0,2.24756546]
[1625272768143,0.67970927,33519.0,33515.0,5.23802058]
[1625272768243,0.67970927,33519.0,33515.0,5.46941058]
[1625272768493,0.67970927,33519.0,33517.0,0.70366541]
[1625272768593,0.73870927,33519.0,33517.0,0.70366541]
[1625272768695,0.73870927,33519.0,33517.0,0.76266541]
[1625272768845,0.67943414,33518.0,33516.0,0.71022779]
[1625272769045,0.73843414,33518.0,33516.0,0.70363735]
[1625272769247,0.67943414,33518.0,33517.0,0.00659054]
[1625272769447,0.67943414,33518.0,33517.0,0.06559054]
[1625272769594,0.67943414,33518.0,33517.0,0.30616598]
[1625272769946,0.73843414,33518.0,33517.0,0.30616598]
[1625272770148,0.73843414,33518.0,33517.0,0.24716598]
[1625272770547,0.73843414,33518.0,33517.0,0.24057544]
[1625272770949,0.67943414,33518.0,33517.0,0.24057544]
[1625272771099,1.69788905,33518.0,33517.0,0.24057544]
[1625272771750,1.69788905,33518.0,33517.0,0.29957544]
[1625272771901,1.69788905,33518.0,33517.0,0.30617631]
[1625272772102,0.67943414,33518.0,33517.0,0.30617631]
[1625272772603,1.69793684,33518.0,33517.0,0.30617631]
[1625272773309,0.67927137,33519.0,33517.0,0.30617631]
[1625272773606,0.67927137,33519.0,33518.0,0.00659933]
[1625272773706,0.67927137,33519.0,33518.0,0.48322477]
[1625272773807,0.67927137,33519.0,33518.0,0.54222477]
[1625272774057,0.68037381,33524.0,33518.0,3.53145061]
[1625272774159,0.73937381,33524.0,33518.0,3.53145061]
[1625272774359,0.68037381,33524.0,33519.0,0.00659936]
[1625272774458,0.68037381,33524.0,33519.0,0.06559936]
[1625272774612,0.68037381,33524.0,33522.0,0.7033557]
[1625272774709,0.68046753,33525.0,33522.0,0.7033557]
[1625272774809,0.68046753,33525.0,33522.0,0.7623557]
[1625272774909,0.68046753,33525.0,33523.0,0.00658991]
[1625272775059,0.68046753,33525.0,33523.0,0.06558991]
[1625272775361,1.01997939,33524.0,33523.0,0.059]
[1625272775710,1.01997939,33524.0,33523.0,0.54674069]
[1625272775860,0.68043851,33524.0,33523.0,0.54674069]
[1625272776812,0.68046992,33525.0,33523.0,0.54674069]
[1625272776913,0.73946992,33525.0,33523.0,0.54674069]
[1625272777064,0.6802769,33524.0,33523.0,0.54674069]
[1625272777312,0.6802769,33524.0,33523.0,0.54015088]
[1625272777465,0.6802769,33524.0,33523.0,0.54674078]
[1625272777564,1.70038063,33524.0,33523.0,0.54674078]
[1625272779266,1.70038063,33524.0,33523.0,0.48774078]
[1625272779619,1.70038063,33524.0,33523.0,0.54674078]
[1625272779818,2.88998888,33524.0,33523.0,0.54674078]
[1625272780469,1.70038063,33524.0,33523.0,0.54674078]
[1625272780969,0.68056249,33525.0,33523.0,0.79982078]
[1625272781220,0.68056249,33525.0,33524.0,0.00658974]
[1625272781320,0.68056249,33525.0,33524.0,0.06558974]
[1625272782872,1.70147522,33525.0,33524.0,0.06558974]
[1625272785181,0.68056249,33525.0,33524.0,0.06558974]
[1625272786531,1.70169185,33525.0,33524.0,0.06558974]
[1625272787483,1.70169185,33525.0,33524.0,0.059]
[1625272787782,0.68056249,33525.0,33524.0,0.06558967]
[1625272788233,1.70193688,33525.0,33524.0,0.06558967]
[1625272789437,0.68056249,33525.0,33524.0,0.06558967]
[1625272789939,0.68056249,33525.0,33524.0,0.76924226]
[1625272790290,0.68056249,33525.0,33524.0,0.76265259]
[1625272790393,1.70284145,33525.0,33524.0,0.06559035]
[1625272790641,1.70284145,33525.0,33524.0,0.00659035]
[1625272790741,1.70284145,33525.0,33524.0,0.06559035]
[1625272791191,1.70284145,33525.0,33524.0,0.00659035]
[1625272791792,1.70284145,33525.0,33523.0,0.72172632]
[1625272791991,1.70284145,33525.0,33524.0,0.00659115]
[1625272792241,4.25340338,33525.0,33524.0,0.00659115]
[1625272792793,2.89311502,33525.0,33524.0,0.00659115]
[1625272796247,4.25449504,33525.0,33524.0,0.00659115]
[1625272796850,4.31349504,33525.0,33524.0,0.00659115]
[1625272797050,4.37249504,33525.0,33521.0,0.00659285]
[1625272797150,4.31349504,33525.0,33521.0,0.00659285]
[1625272797750,4.8652,33522.0,33521.0,0.00659285]
[1625272797850,8.43560259,33522.0,33519.0,0.0065929]
[1625272797951,8.49460259,33522.0,33519.0,0.0065929]
[1625272798402,2.88956116,33520.0,33519.0,0.0065929]
[1625272798500,2.94856116,33520.0,33519.0,0.0065929]
[1625272799303,4.30750555,33520.0,33519.0,0.0065929]
[1625272800956,2.94856116,33520.0,33519.0,0.0065929]
[1625272801857,2.94856116,33520.0,33519.0,0.24716834]
[1625272802308,2.88956116,33520.0,33519.0,0.30616834]
[1625272802409,1.69978185,33520.0,33519.0,0.30616834]
[1625272804562,0.17023347,33520.0,33519.0,2.06632493]
[1625272805115,0.17030156,33521.0,33519.0,3.29837291]
[1625272805413,0.22930156,33521.0,33519.0,3.29837291]
[1625272805565,0.73949147,33521.0,33520.0,1.76670716]
[1625272805664,0.73949147,33521.0,33520.0,1.82570716]
[1625272805813,0.73949147,33521.0,33520.0,2.0662826]
[1625272806565,0.68049147,33521.0,33520.0,1.01021369]
[1625272806915,0.68078101,33522.0,33520.0,2.06643189]
[1625272807165,0.68078101,33522.0,33521.0,0.00659185]
[1625272807268,0.68078101,33522.0,33521.0,0.06559185]
[1625272807466,0.68078101,33522.0,33521.0,1.82591403]
[1625272808519,0.681055,33523.0,33521.0,1.82591403]
[1625272808918,0.681055,33523.0,33522.0,0.00659175]
[1625272809019,0.681055,33523.0,33522.0,1.82623298]
[1625272809619,0.681055,33523.0,33522.0,1.88523298]
[1625272809869,0.681055,33523.0,33522.0,2.12580842]
[1625272810021,0.68153404,33524.0,33522.0,3.35854273]
[1625272810470,0.68153404,33524.0,33523.0,1.7610223]
[1625272810570,0.68153404,33524.0,33523.0,1.88561775]
[1625272812327,0.68153404,33524.0,33523.0,3.1186653]
[1625272813026,0.68153404,33524.0,33523.0,3.0596653]
[1625272813826,0.68153404,33524.0,33523.0,3.1186653]
[1625272813979,0.48753404,33524.0,33523.0,3.1186653]
[1625272814080,1.1924343,33527.0,33523.0,1.88561775]
[1625272814480,1.1924343,33527.0,33524.0,4.0299]
[1625272814578,1.1924343,33527.0,33524.0,4.40722361]
[1625272814678,1.1924343,33527.0,33524.0,4.46622361]
[1625272814779,1.1924343,33527.0,33525.0,0.00659358]
[1625272814930,3.43e-05,33527.0,33525.0,0.12459358]
[1625272815132,0.03,33552.0,33525.0,0.12459358]
[1625272815133,1.19420029,33536.0,33526.0,4.22436995]
[1625272815230,1.19420029,33536.0,33526.0,4.63526995]
[1625272815329,1.25320029,33536.0,33526.0,4.64185578]
[1625272815583,1.25320029,33536.0,33527.0,0.00658574]
[1625272815682,1.25320029,33536.0,33527.0,0.06558574]
[1625272815783,1.25320029,33536.0,33530.0,1.40803874]
[1625272815985,1.25320029,33536.0,33535.0,0.72172632]
[1625272816084,1.25320029,33536.0,33535.0,1.09219632]
[1625272816434,1.25320029,33536.0,33535.0,1.09878235]
[1625272816890,0.059,33536.0,33535.0,1.09878235]
[1625272819948,0.059,33536.0,33535.0,1.09219632]
[1625272821798,0.059,33536.0,33535.0,1.0987822]
[1625272822099,0.059,33536.0,33535.0,1.09219632]
[1625272826107,1.42287712,33539.0,33535.0,1.09219632]
[1625272826409,0.059,33539.0,33535.0,1.09219632]
[1625272828562,1.42281968,33539.0,33535.0,1.09219632]
[1625272829766,1.42281968,33539.0,33536.0,0.00658537]
[1625272829866,0.059,33539.0,33536.0,0.00658537]
[1625272829966,0.059,33539.0,33536.0,0.06558537]
[1625272830319,0.059,33539.0,33537.0,0.00658533]
[1625272830419,0.059,33539.0,33537.0,0.06558533]
[1625272830821,0.059,33539.0,33537.0,0.059]
[1625272833277,1.42262781,33539.0,33537.0,0.059]
[1625272835830,1.19283575,33538.0,33537.0,0.059]
[1625272836080,1.19283575,33538.0,33537.0,0.06557972]
[1625272842947,1.25179064,33539.0,33537.0,0.06557972]
[1625272843197,1.25179064,33539.0,33538.0,0.00657949]
[1625272843399,1.25179064,33539.0,33538.0,0.06557949]
[1625272844550,1.08157156,33539.0,33538.0,0.06557949]
[1625272845852,1.08157156,33539.0,33538.0,0.059]
[1625272846104,1.08157156,33539.0,33538.0,0.06557933]
[1625272848458,1.59292658,33539.0,33538.0,0.06557933]
[1625272856121,1.59292658,33539.0,33538.0,0.00657933]
[1625272856423,1.59292658,33539.0,33536.0,0.00656861]
[1625272856574,5.21272658,33539.0,33536.0,0.00656861]
[1625272856672,6.40554638,33539.0,33536.0,0.00656861]
[1625272856823,6.40554638,33539.0,33536.0,0.06556861]
[1625272857125,1.53396084,33537.0,33536.0,0.06556861]
[1625272857275,1.53396084,33537.0,33536.0,0.059]
[1625272857474,1.53396084,33537.0,33536.0,0.06556863]
[1625272858124,2.72738706,33537.0,33536.0,0.06556863]
[1625272858324,2.72738706,33537.0,33536.0,0.00656863]
[1625272858424,2.72738706,33537.0,33536.0,0.06556863]
[1625272859276,2.72738706,33537.0,33536.0,0.00656863]
[1625272859527,2.72738706,33537.0,33536.0,0.06556863]
[1625272859980,3.03840706,33537.0,33536.0,0.06556863]
[1625272860078,3.03840706,33537.0,33536.0,0.00656863]
[1625272860229,3.29002384,33537.0,33536.0,0.00656863]
[1625272860530,4.65465478,33537.0,33536.0,0.00656863]
[1625272861030,6.18986118,33537.0,33536.0,0.00656863]
[1625272861532,4.65465478,33537.0,33536.0,0.00656863]
[1625272862633,4.71365478,33537.0,33536.0,0.00656863]
[1625272862984,4.65465478,33537.0,33536.0,0.00656863]
[1625272863236,4.71365478,33537.0,33536.0,0.00656863]
[1625272863337,6.19032749,33537.0,33536.0,0.00656863]
[1625272863636,6.24932749,33537.0,33536.0,0.00656863]
[1625272863736,6.19032749,33537.0,33536.0,0.00656863]
[1625272864036,6.24932749,33537.0,33536.0,0.00656863]
[1625272866693,6.24932749,33537.0,33535.0,0.48115088]
[1625272866992,0.01104245,33536.0,33530.0,0.52788098]
[1625272867093,0.07004245,33536.0,33530.0,0.52788098]
[1625272867196,0.12904245,33536.0,33530.0,0.04878098]
[1625272867445,0.03,33535.0,33530.0,0.04878098]
[1625272867545,5.62681124,33531.0,33525.0,0.52867892]
[1625272867696,5.68581124,33531.0,33525.0,0.52867892]
[1625272867794,5.74481124,33531.0,33525.0,0.52867892]
[1625272868045,5.11048246,33526.0,33520.0,1.97526133]
[1625272868144,5.0086,33524.0,33520.0,1.97526133]
[1625272868245,0.72172632,33521.0,33520.0,1.97526133]
[1625272868395,1.03282632,33521.0,33520.0,1.97526133]
[1625272868495,1.09182632,33521.0,33520.0,1.97526133]
[1625272868595,2.114105,33521.0,33520.0,1.97526133]
[1625272868844,2.114105,33521.0,33520.0,2.04083409]
[1625272871148,2.114105,33521.0,33520.0,1.98183409]
[1625272871248,2.114105,33521.0,33520.0,2.04083409]
[1625272872199,2.114105,33521.0,33520.0,2.03426133]
[1625272872301,1.09182632,33521.0,33520.0,2.04083341]
[1625272873304,0.78072632,33521.0,33520.0,2.04083341]
[1625272873458,0.78072632,33521.0,33520.0,3.27352716]
[1625272874304,0.78072632,33521.0,33520.0,3.97791381]
[1625272874708,0.78072632,33521.0,33520.0,4.29125381]
[1625272875261,0.72172632,33521.0,33520.0,3.05856006]
[1625272875711,0.72172632,33521.0,33520.0,4.29083697]
[1625272876264,0.72172632,33521.0,33520.0,5.69906632]
[1625272877871,0.24057544,33521.0,33520.0,5.69906632]
[1625272877970,0.68150932,33527.0,33520.0,5.75806632]
[1625272878419,0.68150932,33527.0,33526.0,0.29957544]
[1625272878620,0.68150932,33527.0,33526.0,0.30614575]
[1625272878720,0.34108772,33528.0,33526.0,3.29809441]
[1625272879221,0.34108772,33528.0,33527.0,2.9916787]
[1625272879320,0.34108772,33528.0,33527.0,3.2928387]
[1625272879420,0.34108772,33528.0,33527.0,3.29940899]
[1625272879672,0.58175989,33529.0,33527.0,3.29940899]
[1625272880020,0.58175989,33529.0,33528.0,0.00657015]
[1625272880120,0.58175989,33529.0,33528.0,0.06557015]
[1625272880422,0.58175989,33529.0,33528.0,1.82544165]
[1625272880972,0.24057544,33529.0,33528.0,3.05723228]
[1625272882073,0.34132041,33530.0,33528.0,3.05723228]
[1625272882175,0.34132678,33529.0,33528.0,3.05723228]
[1625272882375,0.34132678,33529.0,33528.0,3.05066213]
[1625272882624,0.34132678,33529.0,33528.0,3.0572321]
[1625272883930,0.34130958,33530.0,33528.0,3.0572321]
[1625272884231,0.34130958,33530.0,33529.0,0.00656974]
[1625272884330,0.34130958,33530.0,33529.0,0.30614518]
[1625272884431,0.34136658,33531.0,33529.0,3.29788566]
[1625272884783,0.34136658,33531.0,33530.0,0.00656965]
[1625272884885,0.34136658,33531.0,33530.0,0.06556965]
[1625272884983,0.34136658,33531.0,33530.0,1.82529993]
[1625272885936,0.68256257,33532.0,33530.0,1.82529993]
[1625272886341,0.68256257,33532.0,33531.0,0.00656929]
[1625272886437,0.68256257,33532.0,33531.0,0.24714473]
[1625272886539,0.68256257,33532.0,33531.0,2.06600691]
[1625272886938,0.68256257,33532.0,33531.0,7.25760691]
[1625272887191,0.68299575,33533.0,33531.0,7.25760691]
[1625272887288,0.68299575,33533.0,33531.0,2.06600691]
[1625272887642,1.02440828,33534.0,33531.0,2.06600691]
[1625272887643,0.34181022,33534.0,33532.0,2.99146024]
[1625272887743,0.34181022,33534.0,33532.0,3.05702858]
[1625272887996,0.34181022,33534.0,33533.0,0.00656834]
[1625272888092,0.34181022,33534.0,33533.0,0.06556834]
[1625272888193,0.34181022,33534.0,33533.0,3.05702969]
[1625272889198,0.24057544,33535.0,33533.0,3.05702969]
[1625272889199,0.58236019,33535.0,33533.0,3.05702969]
[1625272889548,0.58236019,33535.0,33534.0,0.00656824]
[1625272889648,0.58236019,33535.0,33534.0,0.30193824]
[1625272889749,0.58236019,33535.0,33534.0,3.35219576]
[1625272890450,0.58236019,33535.0,33534.0,3.5927712]
[1625272894009,0.58236019,33535.0,33534.0,2.36107693]
[1625272894562,0.68355523,33536.0,33534.0,2.36107693]
[1625272894662,0.68355523,33536.0,33534.0,2.42007693]
[1625272894910,0.68355523,33536.0,33535.0,0.00656675]
[1625272895011,0.68355523,33536.0,33535.0,0.12456675]
[1625272895163,0.34198264,33537.0,33535.0,3.11517317]
[1625272895412,0.34198264,33537.0,33536.0,0.00656666]
[1625272895613,0.34198264,33537.0,33536.0,0.12456666]
[1625272895712,0.34198264,33537.0,33536.0,3.11493078]
[1625272896415,0.34219938,33538.0,33536.0,3.35550622]
[1625272896765,0.34219938,33538.0,33537.0,0.00656322]
[1625272896915,0.34219938,33538.0,33537.0,0.12456322]
[1625272897167,0.34219938,33538.0,33537.0,1.88341584]
[1625272897417,0.34219938,33538.0,33537.0,1.87685262]
[1625272897618,0.34219938,33538.0,33537.0,1.88341581]
[1625272898618,0.34209783,33539.0,33537.0,1.88341581]
[1625272898868,0.34209783,33539.0,33538.0,0.0065631]
[1625272898967,0.34209783,33539.0,33538.0,0.0655631]
[1625272899218,0.68408257,33540.0,33538.0,1.82410429]
[1625272899670,0.68408257,33540.0,33539.0,0.00656296]
[1625272899769,0.68408257,33540.0,33539.0,0.76890328]
[1625272900472,0.68408257,33540.0,33539.0,1.00947872]
[1625272901223,0.34230193,33541.0,33539.0,3.29503537]
[1625272901525,0.6844328,33543.0,33540.0,0.00656241]
[1625272901674,0.34224222,33542.0,33540.0,1.76425845]
[1625272901774,0.34224222,33542.0,33540.0,1.82325845]
[1625272902126,0.34224222,33542.0,33541.0,0.00656241]
[1625272902276,0.34224222,33542.0,33541.0,2.1367718]
[1625272902427,0.34224222,33542.0,33541.0,2.37734724]
[1625272902978,0.34225439,33543.0,33541.0,2.37734724]
[1625272903378,0.34225439,33543.0,33542.0,0.70940514]
[1625272903578,0.34225439,33543.0,33542.0,0.76840514]
[1625272906482,0.34228377,33544.0,33542.0,1.82235657]
[1625272906582,0.34228377,33544.0,33542.0,6.55955657]
[1625272906832,0.34228377,33544.0,33543.0,0.0065617]
[1625272906983,0.3424219,33546.0,33543.0,1.76289276]
[1625272907131,0.4014219,33546.0,33543.0,1.82189276]
[1625272907382,0.4014219,33546.0,33544.0,0.00656178]
[1625272907583,0.4014219,33546.0,33545.0,0.35116167]
[1625272907682,0.4014219,33546.0,33545.0,0.41016167]
[1625272907932,0.4014219,33546.0,33545.0,0.41672353]
[1625272908485,0.4014219,33546.0,33545.0,0.65729897]
[1625272909688,0.059,33546.0,33545.0,0.65729897]
[1625272910538,0.059,33546.0,33545.0,0.89787441]
[1625272912443,0.40106519,33546.0,33545.0,0.54671274]
[1625272912844,0.059,33546.0,33545.0,0.54671274]
[1625272913753,0.059,33546.0,33545.0,0.8975549]
[1625272914153,0.059,33546.0,33545.0,0.54671274]
[1625272918562,0.059,33546.0,33545.0,0.89735714]
[1625272920366,0.059,33546.0,33545.0,0.54671274]
[1625272921220,0.059,33546.0,33545.0,0.89720843]
[1625272922623,0.059,33546.0,33545.0,0.54671274]
[1625272922923,0.34115421,33551.0,33545.0,0.60571274]
[1625272923174,0.58175764,33552.0,33545.0,1.30657769]
[1625272923325,0.58175764,33552.0,33546.0,0.0065697]
[1625272923426,0.58175764,33552.0,33546.0,0.0655697]
[1625272923528,0.58175764,33552.0,33546.0,0.1245697]
[1625272923628,0.34116,33551.0,33546.0,0.47500338]
[1625272923877,0.34116,33551.0,33547.0,0.00656974]
[1625272923977,0.34116,33551.0,33547.0,0.06556974]
[1625272924080,0.34116,33551.0,33547.0,0.12456974]
[1625272924433,0.34116,33551.0,33548.0,0.00656969]
[1625272924531,0.34116,33551.0,33548.0,0.35855969]
[1625272924681,0.34116,33551.0,33550.0,0.24057544]
[1625272924782,0.34116,33551.0,33550.0,0.29957544]
[1625272924934,0.58172855,33552.0,33550.0,0.29957544]
[1625272925083,0.58172855,33552.0,33550.0,0.30614517]
[1625272925181,0.58172855,33552.0,33551.0,0.00656973]
[1625272925334,0.58172855,33552.0,33551.0,0.06556973]
[1625272926285,0.24057544,33552.0,33551.0,0.06556973]
[1625272926587,0.24057544,33552.0,33551.0,0.30614517]
[1625272927337,0.58174155,33552.0,33551.0,0.30614517]
[1625272928991,0.24057544,33552.0,33551.0,0.30614517]
[1625272929241,3.88857544,33552.0,33551.0,0.30614517]
[1625272929792,0.24057544,33552.0,33551.0,0.30614517]
[1625272929890,0.24057544,33552.0,33551.0,0.52998517]
[1625272930041,0.92258491,33552.0,33551.0,0.52998517]
[1625272930593,0.24057544,33552.0,33551.0,0.52998517]
[1625272931545,0.92290845,33552.0,33551.0,0.52998517]
[1625272933246,1.947865,33552.0,33551.0,0.52998517]
[1625272933346,1.947865,33552.0,33551.0,0.30614517]
[1625272933496,1.947865,33552.0,33551.0,0.24714517]
[1625272934099,6.713065,33552.0,33551.0,0.24714517]
[1625272934250,7.90973683,33552.0,33551.0,0.24714517]
[1625272934648,3.14453683,33552.0,33551.0,0.24714517]
[1625272934749,3.1555711,33552.0,33551.0,0.24714517]
[1625272935803,4.52340987,33552.0,33551.0,0.24714517]
[1625272936405,3.1555711,33552.0,33551.0,0.24714517]
[1625272936909,4.5230319,33552.0,33551.0,0.24714517]
[1625272937007,4.5820319,33552.0,33551.0,0.30614517]
[1625272937108,4.8111219,33552.0,33551.0,0.00656973]
[1625272937559,4.8111219,33552.0,33546.0,0.00656882]
[1625272937759,4.8111219,33552.0,33546.0,0.06556882]
[1625272937859,4.8111219,33552.0,33551.0,0.00656875]
[1625272938060,4.8111219,33552.0,33547.0,0.00656875]
[1625272938163,1.19606601,33548.0,33547.0,0.06556875]
[1625272938261,1.25506601,33548.0,33547.0,0.06556875]
[1625272938362,1.25506601,33548.0,33547.0,0.059]
[1625272938562,1.25506601,33548.0,33547.0,0.06556881]
[1625272938663,1.73621689,33548.0,33547.0,0.06556881]
[1625272938763,3.44499249,33548.0,33547.0,0.06556881]
[1625272940165,3.44499249,33548.0,33541.0,0.48203617]
[1625272940367,3.50399249,33548.0,33541.0,0.48203617]
[1625272940517,0.0410355,33547.0,33542.0,0.00657003]
[1625272940616,0.1590355,33547.0,33542.0,0.00657003]
[1625272940716,0.79049088,33543.0,33542.0,0.00657003]
[1625272940816,6.50270174,33543.0,33542.0,0.00657003]
[1625272940966,6.5137554,33543.0,33542.0,0.00657003]
[1625272941267,6.5137554,33543.0,33537.0,0.00656013]
[1625272941469,9.41110168,33543.0,33537.0,0.00656013]
[1625272941567,0.0410543,33542.0,33537.0,0.00656013]
[1625272941667,0.1590543,33542.0,33537.0,0.00656013]
[1625272941869,0.0110546,33541.0,33530.0,0.00656058]
[1625272941969,2.55577832,33538.0,33530.0,0.00656058]
[1625272942070,2.67377832,33538.0,33530.0,0.00656058]
[1625272942367,2.67377832,33538.0,33529.0,0.00656055]
[1625272942468,1.19224493,33535.0,33529.0,0.00656055]
[1625272942568,1.58460493,33535.0,33529.0,0.00656055]
[1625272942668,0.48115088,33530.0,33529.0,0.00656055]
[1625272942769,0.59915088,33530.0,33529.0,0.00656055]
[1625272943672,0.54015088,33530.0,33529.0,0.00656055]
[1625272943820,0.54015088,33530.0,33527.0,1.4714773]
[1625272943970,0.59915088,33530.0,33527.0,1.23090186]
[1625272944273,0.59915088,33530.0,33528.0,0.00654975]
[1625272944426,3.7791,33529.0,33528.0,0.00654975]
[1625272944525,3.8381,33529.0,33528.0,0.00654975]
[1625272944626,3.8971,33529.0,33528.0,0.00654975]
[1625272944724,4.13767544,33529.0,33528.0,0.00654975]
[1625272945075,4.13767544,33529.0,33526.0,0.00654989]
[1625272945274,4.13767544,33529.0,33528.0,0.00654992]
[1625272945626,4.13767544,33529.0,33524.0,0.00654987]
[1625272945727,0.35857544,33529.0,33524.0,0.00654987]
[1625272945826,0.29957544,33529.0,33524.0,0.00654987]
[1625272945926,0.29957544,33529.0,33524.0,0.06554987]
[1625272946375,0.35857544,33529.0,33525.0,0.00654961]
[1625272946676,0.24057544,33526.0,33525.0,0.00654961]
[1625272946826,0.29957544,33526.0,33525.0,0.00654961]
[1625272946927,3.6528,33525.0,33524.0,0.00655]
[1625272947028,3.6528,33525.0,33524.0,1.23699178]
[1625272947128,3.7118,33525.0,33524.0,1.23699178]
[1625272947427,0.059,33525.0,33524.0,1.23044178]
[1625272947529,0.059,33525.0,33523.0,0.24057544]
[1625272947628,0.059,33525.0,33524.0,0.059]
[1625272947877,0.059,33525.0,33524.0,1.2307063]
[1625272948229,0.059,33525.0,33524.0,1.23725604]
[1625272948531,0.059,33525.0,33524.0,1.2307063]
[1625272949036,0.059,33525.0,33523.0,0.53347544]
[1625272949037,0.059,33525.0,33523.0,1.76365059]
[1625272949234,0.059,33525.0,33523.0,1.47075059]
[1625272949536,0.059,33525.0,33523.0,0.24057544]
[1625272950036,0.059,33525.0,33523.0,1.4707744]
[1625272950986,0.25018,33525.0,33523.0,1.4707744]
[1625272951537,0.25018,33525.0,33523.0,0.24057544]
[1625272952737,0.24057544,33524.0,33523.0,0.24057544]
[1625272952837,0.29957544,33524.0,33523.0,0.24057544]
[1625272957550,0.29957544,33524.0,33523.0,0.76679944]
[1625272959551,0.29957544,33524.0,33523.0,0.41591935]
[1625272960104,0.29957544,33524.0,33523.0,0.76660747]
[1625272960455,0.29957544,33524.0,33523.0,1.05192747]
[1625272960617,0.24057544,33524.0,33523.0,1.05192747]
[1625272960703,0.24057544,33524.0,33523.0,0.70120364]
[1625272960803,0.24057544,33524.0,33523.0,4.37440364]
[1625272961054,0.24057544,33524.0,33523.0,1.05178476]
[1625272961303,0.24057544,33524.0,33523.0,1.05834469]
[1625272961703,0.24057544,33524.0,33523.0,4.73154469]
[1625272962308,0.24057544,33526.0,33523.0,4.73154469]
[1625272962409,0.24057544,33526.0,33523.0,4.79054469]
[1625272962708,0.24057544,33526.0,33524.0,0.00655944]
[1625272962863,0.24057544,33529.0,33525.0,0.29957544]
[1625272963109,0.16998029,33532.0,33525.0,0.29957544]
[1625272963211,0.24057544,33533.0,33526.0,0.00655888]
[1625272963311,0.24057544,33536.0,33526.0,0.00655888]
[1625272963410,0.24057544,33536.0,33526.0,0.12455888]
[1625272963710,0.24057544,33536.0,33527.0,0.00655763]
[1625272963912,0.24057544,33536.0,33535.0,0.80535703]
[1625272964011,0.24057544,33536.0,33535.0,0.86435703]
[1625272964210,0.24057544,33536.0,33535.0,0.87091458]
[1625272964762,0.24057544,33536.0,33535.0,1.35206546]
[1625272965119,0.24057544,33540.0,33535.0,1.35206546]
[1625272965511,0.17052692,33544.0,33535.0,1.35206546]
[1625272965610,0.17052692,33544.0,33536.0,0.00655741]
[1625272965711,0.17052692,33544.0,33538.0,0.17518889]
[1625272965811,0.17052692,33544.0,33538.0,0.23418889]
[1625272966113,0.17052692,33544.0,33539.0,0.00655743]
[1625272966212,0.41109461,33545.0,33539.0,0.18174538]
[1625272966363,0.47009461,33545.0,33539.0,0.18174538]
[1625272966613,0.47009461,33545.0,33540.0,0.00655722]
[1625272966763,0.47009461,33545.0,33544.0,0.48115088]
[1625272966861,0.47009461,33545.0,33544.0,0.76373088]
[1625272968817,0.81087655,33545.0,33544.0,0.76373088]
[1625272969417,0.47012586,33545.0,33544.0,0.76373088]